fUST/lending_fUST_20250103
["ID","MTS","AMOUNT","RATE_DAILY","PERIOD"]
[347557835,1735916579728,1000.0,0.00025,120]
[347557836,1735916638308,94086.90080221,0.0001,2]
[347557837,1735916638334,151250.42231389,0.0001,2]
[347557838,1735916658330,1000.0,0.00025,120]
[347557840,1735916764956,201.00432686,0.00025,120]
[347557841,1735916971107,-273.89977927,0.00014028,2]
[347557842,1735916971128,-273.89977927,0.0001417,2]
[347557843,1735916971148,-72.63700759,0.00015513,2]
[347557850,1735917031949,-427.36299241,0.00015358,2]
[347557853,1735917031959,-427.36299241,0.00015513,2]
[347557855,1735917031969,-1000.0,0.00016,16]
[347557857,1735917031978,-254.042081,0.00017637,2]
[347557859,1735917031987,-600.0,0.00018,2]
[347557861,1735917032000,-500.0,0.00018253,2]
[347557863,1735917032010,-394.0,0.00018854,2]
[347557864,1735917032019,-1000.0,0.00019,19]
[347557866,1735917032029,-2000.0,0.00019,2]
[347557869,1735917032038,-690.0,0.000191,8]
[347557870,1735917032047,-500.0,0.00019173,2]
[347557873,1735917032056,-300.0,0.00019176,2]
[347557875,1735917032066,-500.0,0.00019177,2]
[347557877,1735917032075,-214.29222667,0.00019177,2]
[347557879,1735917032085,-377.24024357,0.00019177,2]
[347557881,1735917032094,-153.08272685,0.00019177,2]
[347557883,1735917032103,-422.11516219,0.00019178,2]
[347557884,1735917032112,-502.8024777,0.00019178,2]
[347557886,1735917032121,-500.0,0.00019178,2]
[347557889,1735917032131,-500.0,0.00019178,2]
[347557891,1735917032140,-500.0,0.00019178,2]
[347557893,1735917032151,-500.0,0.00019178,2]
[347557895,1735917032160,-500.0,0.00019178,2]
[347557897,1735917032170,-500.0,0.00019178,2]
[347557899,1735917032179,-500.0,0.00019178,2]
[347557902,1735917032188,-500.0,0.00019178,2]
[347557904,1735917032197,-380.75312128,0.00019178,2]
[347557909,1735917032232,-119.24687872,0.00019178,2]
[347557911,1735917032244,-500.0,0.00019178,2]
[347557913,1735917032253,-500.0,0.00019178,2]
[347557915,1735917032262,-500.0,0.00019178,2]
[347557916,1735917032272,-70.75312128,0.00019178,2]
[347557921,1735917032330,-429.24687872,0.00019178,2]
[347557923,1735917032340,-500.0,0.00019178,2]
[347557925,1735917032350,-500.0,0.00019178,2]
[347557927,1735917032359,-500.0,0.00019178,2]
[347557929,1735917032369,-500.0,0.00019178,2]
[347557931,1735917032379,-500.0,0.00019178,2]
[347557933,1735917032389,-500.0,0.00019178,2]
[347557935,1735917032399,-500.0,0.00019178,2]
[347557937,1735917032408,-429.84909748,0.00019178,2]
[347558230,1735917037798,-454.52894069,0.00018986,2]
[347558231,1735917037811,-70.15090252,0.00019178,2]
[347558232,1735917037823,-233.93414484,0.00019178,2]
[347558234,1735917037869,-266.06585516,0.00019178,2]
[347558236,1735917037882,-292.21790896,0.00019178,2]
[347558315,1735917040241,-207.78209104,0.00019178,2]
[347558317,1735917040256,-500.0,0.00019178,2]
[347558318,1735917040266,-500.0,0.00019178,2]
[347558319,1735917040277,-500.0,0.00019178,2]
[347558321,1735917040289,-500.0,0.00019178,2]
[347558324,1735917040300,-500.0,0.00019178,2]
[347558325,1735917040311,-500.0,0.00019178,2]
[347558326,1735917040321,-403.60737602,0.00019178,2]
[347558327,1735917040332,-500.0,0.00019178,2]
[347558328,1735917040342,-500.0,0.00019178,2]
[347558329,1735917040353,-500.0,0.00019178,2]
[347558330,1735917040364,-500.0,0.00019178,2]
[347558331,1735917040380,-500.0,0.00019178,2]
[347558332,1735917040391,-500.0,0.00019178,2]
[347558333,1735917040404,-123.05336126,0.00019178,2]
[347558678,1735917155254,646.6942716,0.00025,120]
[347558681,1735917429412,225.466015,0.00013973,2]
[347558697,1735917838155,349.55,0.0001401,2]
[347558715,1735918003102,-163.261187,0.00016279,2]
[347558716,1735918003125,-163.261187,0.00016443,2]
[347558717,1735918003146,-59.28529047,0.00016609,2]
[347558721,1735918097488,3043.61449866,0.000125,2]
[347558723,1735918126168,161.0,0.00025,120]
[347558725,1735918150169,-500.0,0.00014417,2]
[347558726,1735918150191,-500.0,0.00015787,2]
[347558727,1735918150212,-293.94332188,0.00016279,2]
[347558728,1735918150235,-293.94332188,0.00016443,2]
[347558729,1735918150257,-307.542196,0.00017899,2]
[347558730,1735918150278,-500.0,0.00017973,2]
[347558731,1735918150299,-910.94149007,0.00018,2]
[347558732,1735918150320,-1000.0,0.00018,18]
[347558733,1735918150342,-300.0,0.00018065,2]
[347558734,1735918150364,-14716.0487346,0.00018066,2]
[347558735,1735918150388,-500.0,0.00018527,2]
[347558736,1735918150410,-791.57606779,0.00018701,2]
[347558737,1735918150431,-1488.9916666,0.00018726,2]
[347558738,1735918150455,-56032.62020818,0.00018726,2]
[347558739,1735918150476,-12243.4248768,0.00018832,2]
[347558740,1735918156219,457.05707413,0.0001881,2]
[347558741,1735918172981,178.0935395,0.0001881,2]
[347558777,1735918232119,-457.05707413,0.00019,2]
[347558778,1735918232128,-158.13478167,0.00019,2]
[347558779,1735918232138,-154.04,0.00019,2]
[347558780,1735918232147,-1244.31894481,0.00019,2]
[347558781,1735918232156,-1000.0,0.00019,19]
[347558782,1735918232165,-1986.155798,0.00019105,2]
[347558783,1735918232178,-10257.2690788,0.00019105,2]
[347558784,1735918232191,-500.0,0.00019173,2]
[347558785,1735918232201,-500.0,0.00019173,2]
[347558786,1735918232210,-500.0,0.00019177,2]
[347558787,1735918232219,-483.71536429,0.00019177,2]
[347558788,1735918232228,-419.15582618,0.00019177,2]
[347558789,1735918232238,-500.0,0.00019177,2]
[347558790,1735918232247,-500.0,0.00019177,2]
[347558791,1735918232257,-225.64747427,0.00019177,2]
[347558792,1735918232266,-265.94913373,0.00019177,2]
[347558793,1735918232275,-744.4958333,0.00019178,2]
[347558795,1735918232285,-28016.3101041,0.00019178,2]
[347558797,1735918232294,-500.0,0.00019178,2]
[347558799,1735918232304,-500.0,0.00019178,2]
[347558801,1735918232313,-500.0,0.00019178,2]
[347558803,1735918232323,-500.0,0.00019178,2]
[347558805,1735918232332,-500.0,0.00019178,2]
[347558807,1735918232342,-238.56519231,0.00019178,2]
[347558809,1735918232351,-500.0,0.00019178,2]
[347558811,1735918232361,-500.0,0.00019178,2]
[347558813,1735918232371,-500.0,0.00019178,2]
[347558815,1735918232380,-500.0,0.00019178,2]
[347558817,1735918232390,-500.0,0.00019178,2]
[347558819,1735918232399,-500.0,0.00019178,2]
[347558821,1735918232409,-500.0,0.00019178,2]
[347558823,1735918232418,-500.0,0.00019178,2]
[347558825,1735918232428,-500.0,0.00019178,2]
[347558828,1735918232439,-500.0,0.00019178,2]
[347558831,1735918232449,-500.0,0.00019178,2]
[347558833,1735918232458,-500.0,0.00019178,2]
[347558835,1735918232467,-500.0,0.00019178,2]
[347558838,1735918232478,-500.0,0.00019178,2]
[347558840,1735918232488,-1023.31,0.00019178,2]
[347558842,1735918232497,-500.0,0.00019178,2]
[347558844,1735918232507,-500.0,0.00019178,2]
[347558846,1735918232517,-500.0,0.00019178,2]
[347558848,1735918232526,-439.91682934,0.00019178,2]
[347558850,1735918232535,-500.0,0.00019178,2]
[347558852,1735918232544,-1139.21,0.00019178,2]
[347558854,1735918232554,-519.46,0.00019178,2]
[347558856,1735918232563,-500.0,0.00019178,2]
[347558858,1735918232573,-512.35014227,0.00019178,2]
[347558860,1735918232582,-258.47514544,0.00019178,2]
[347558862,1735918232591,-536.41232588,0.00019178,2]
[347558864,1735918232600,-602.98,0.00019178,2]
[347558866,1735918232610,-500.0,0.00019178,2]
[347558868,1735918232619,-500.0,0.00019178,2]
[347558870,1735918232630,-502.70296967,0.00019178,2]
[347558872,1735918232639,-500.0,0.00019178,2]
[347558874,1735918232649,-698.37,0.00019178,2]
[347558876,1735918232660,-500.0,0.00019178,2]
[347558878,1735918232670,-500.0,0.00019178,2]
[347558880,1735918232680,-626.11,0.00019178,2]
[347558882,1735918232691,-239.03910027,0.00019178,2]
[347558884,1735918232701,-742.77,0.00019178,2]
[347558886,1735918232710,-500.0,0.00019178,2]
[347558888,1735918232719,-503.89050975,0.00019178,2]
[347558890,1735918232729,-500.0,0.00019178,2]
[347558892,1735918232738,-500.0,0.00019178,2]
[347558894,1735918232748,-500.0,0.00019178,2]
[347558896,1735918232757,-500.0,0.00019178,2]
[347558898,1735918232767,-500.0,0.00019178,2]
[347558900,1735918232777,-500.0,0.00019178,2]
[347558902,1735918232786,-500.0,0.00019178,2]
[347558904,1735918232796,-500.0,0.00019178,2]
[347558906,1735918232805,-1188.03,0.00019178,2]
[347558908,1735918232815,-500.0,0.00019178,2]
[347558910,1735918232824,-500.0,0.00019178,2]
[347558912,1735918232833,-500.0,0.00019178,2]
[347558914,1735918232843,-500.0,0.00019178,2]
[347558916,1735918232852,-500.0,0.00019178,2]
[347558918,1735918232861,-500.0,0.00019178,2]
[347558920,1735918232871,-7401.48,0.00019178,2]
[347558922,1735918232880,-1093.78,0.00019178,2]
[347558924,1735918232890,-500.0,0.00019178,2]
[347558926,1735918232900,-500.0,0.00019178,2]
[347558928,1735918232909,-500.0,0.00019178,2]
[347558930,1735918232919,-500.0,0.00019178,2]
[347558932,1735918232928,-500.0,0.00019178,2]
[347558934,1735918232939,-500.0,0.00019178,2]
[347558936,1735918232950,-500.0,0.00019178,2]
[347558938,1735918232963,-530.47,0.00019178,2]
[347558940,1735918232973,-500.0,0.00019178,2]
[347558942,1735918232982,-500.0,0.00019178,2]
[347558944,1735918232993,-500.0,0.00019178,2]
[347558946,1735918233002,-500.0,0.00019178,2]
[347558948,1735918233011,-500.0,0.00019178,2]
[347558950,1735918233021,-500.0,0.00019178,2]
[347558952,1735918233032,-500.0,0.00019178,2]
[347558954,1735918233042,-500.0,0.00019178,2]
[347558957,1735918233052,-500.0,0.00019178,2]
[347558959,1735918233062,-500.0,0.00019178,2]
[347558961,1735918233072,-1274.22,0.00019178,2]
[347558963,1735918233081,-500.0,0.00019178,2]
[347558965,1735918233091,-500.0,0.00019178,2]
[347558967,1735918233102,-500.0,0.00019178,2]
[347558969,1735918233112,-500.0,0.00019178,2]
[347558971,1735918233121,-500.0,0.00019178,2]
[347558973,1735918233132,-500.0,0.00019178,2]
[347558975,1735918233142,-500.0,0.00019178,2]
[347558977,1735918233152,-500.0,0.00019178,2]
[347558979,1735918233163,-500.0,0.00019178,2]
[347558981,1735918233172,-500.0,0.00019178,2]
[347558983,1735918233184,-500.0,0.00019178,2]
[347558985,1735918233194,-500.0,0.00019178,2]
[347558987,1735918233203,-500.0,0.00019178,2]
[347558990,1735918233221,-500.0,0.00019178,2]
[347558992,1735918233234,-500.0,0.00019178,2]
[347558994,1735918233245,-564.07,0.00019178,2]
[347558996,1735918233255,-562.90969496,0.00019178,2]
[347558998,1735918233265,-500.0,0.00019178,2]
[347559000,1735918233275,-797.09,0.00019178,2]
[347559002,1735918233286,-500.0,0.00019178,2]
[347559005,1735918233296,-500.0,0.00019178,2]
[347559007,1735918233306,-500.0,0.00019178,2]
[347559009,1735918233316,-500.0,0.00019178,2]
[347559011,1735918233325,-500.0,0.00019178,2]
[347559013,1735918233336,-500.0,0.00019178,2]
[347559015,1735918233347,-500.0,0.00019178,2]
[347559017,1735918233357,-500.0,0.00019178,2]
[347559040,1735918233576,-526.44,0.00019178,2]
[347559042,1735918233587,-500.0,0.00019178,2]
[347559044,1735918233598,-158.82114543,0.00019178,2]
[347559046,1735918233610,-500.0,0.00019178,2]
[347559049,1735918233621,-500.0,0.00019178,2]
[347559051,1735918233632,-629.64,0.00019178,2]
[347559053,1735918233643,-984.24,0.00019178,2]
[347559055,1735918233656,-500.0,0.00019178,2]
[347559057,1735918233667,-500.0,0.00019178,2]
[347559059,1735918233677,-500.0,0.00019178,2]
[347559061,1735918233691,-500.0,0.00019178,2]
[347559063,1735918233701,-500.0,0.00019178,2]
[347559065,1735918233712,-500.0,0.00019178,2]
[347559067,1735918233722,-721.57,0.00019178,2]
[347559070,1735918233732,-500.0,0.00019178,2]
[347559072,1735918233743,-510.38246393,0.00019178,2]
[347559074,1735918233753,-500.0,0.00019178,2]
[347559076,1735918233764,-500.0,0.00019178,2]
[347559078,1735918233775,-504.61227403,0.00019178,2]
[347559080,1735918233786,-500.0,0.00019178,2]
[347559082,1735918233796,-500.0,0.00019178,2]
[347559084,1735918233807,-500.0,0.00019178,2]
[347559086,1735918233818,-677.7,0.00019178,2]
[347559088,1735918233829,-500.0,0.00019178,2]
[347559090,1735918233839,-500.0,0.00019178,2]
[347559092,1735918233850,-500.0,0.00019178,2]
[347559094,1735918233861,-500.0,0.00019178,2]
[347559096,1735918233871,-500.0,0.00019178,2]
[347559098,1735918233882,-500.0,0.00019178,2]
[347559100,1735918233892,-500.0,0.00019178,2]
[347559102,1735918233903,-500.0,0.00019178,2]
[347559104,1735918233913,-756.24,0.00019178,2]
[347559107,1735918233924,-504.4831722,0.00019178,2]
[347559108,1735918233935,-500.0,0.00019178,2]
[347559111,1735918233947,-500.0,0.00019178,2]
[347559113,1735918233962,-500.0,0.00019178,2]
[347559115,1735918233972,-1193.89,0.00019178,2]
[347559117,1735918233982,-500.0,0.00019178,2]
[347559119,1735918233992,-1664.39,0.00019178,2]
[347559121,1735918234002,-500.0,0.00019178,2]
[347559123,1735918234012,-500.0,0.00019178,2]
[347559125,1735918234022,-211.92702209,0.00019178,2]
[347559127,1735918234033,-500.0,0.00019178,2]
[347559129,1735918234043,-516.81159516,0.00019178,2]
[347559131,1735918234053,-508.58,0.00019178,2]
[347559133,1735918234063,-606.37,0.00019178,2]
[347559135,1735918234072,-500.0,0.00019178,2]
[347559137,1735918234082,-500.0,0.00019178,2]
[347559139,1735918234092,-500.0,0.00019178,2]
[347559141,1735918234103,-500.0,0.00019178,2]
[347559143,1735918234112,-2737.47,0.00019178,2]
[347559145,1735918234124,-1252.14,0.00019178,2]
[347559147,1735918234135,-500.0,0.00019178,2]
[347559149,1735918234146,-500.0,0.00019178,2]
[347559151,1735918234155,-528.98079656,0.00019178,2]
[347559153,1735918234165,-500.0,0.00019178,2]
[347559155,1735918234175,-500.0,0.00019178,2]
[347559157,1735918234187,-174.4258626,0.00019178,2]
[347559160,1735918234205,-325.5741374,0.00019178,2]
[347559162,1735918234215,-569.89,0.00019178,2]
[347559164,1735918234224,-500.0,0.00019178,2]
[347559166,1735918234234,-500.0,0.00019178,2]
[347559168,1735918234245,-500.0,0.00019178,2]
[347559171,1735918234255,-531.11,0.00019178,2]
[347559173,1735918234265,-500.0,0.00019178,2]
[347559175,1735918234276,-500.0,0.00019178,2]
[347559177,1735918234287,-1198.87,0.00019178,2]
[347559179,1735918234296,-500.0,0.00019178,2]
[347559181,1735918234307,-500.0,0.00019178,2]
[347559183,1735918234317,-500.0,0.00019178,2]
[347559185,1735918234327,-38076.05,0.00019178,2]
[347559187,1735918234339,-3378.78,0.00019178,2]
[347559189,1735918234349,-3296.11,0.00019178,2]
[347559191,1735918234359,-1415.65,0.00019178,2]
[347559193,1735918234369,-500.0,0.00019178,2]
[347559195,1735918234379,-500.0,0.00019178,2]
[347559197,1735918234389,-1502.87,0.00019178,2]
[347559199,1735918234400,-8982.95,0.00019178,2]
[347559201,1735918234410,-4309.39,0.00019178,2]
[347559203,1735918234419,-904.65,0.00019178,2]
[347559205,1735918234429,-500.0,0.00019178,2]
[347559207,1735918234439,-1431.87,0.00019178,2]
[347559209,1735918234449,-500.0,0.00019178,2]
[347559211,1735918234459,-500.0,0.00019178,2]
[347559213,1735918234468,-500.0,0.00019178,2]
[347559215,1735918234479,-504.13582061,0.00019178,2]
[347559218,1735918234488,-500.0,0.00019178,2]
[347559220,1735918234498,-500.0,0.00019178,2]
[347559222,1735918234507,-500.0,0.00019178,2]
[347559224,1735918234518,-505.62015772,0.00019178,2]
[347559226,1735918234527,-507.03,0.00019178,2]
[347559228,1735918234537,-500.0,0.00019178,2]
[347559230,1735918234546,-500.0,0.00019178,2]
[347559232,1735918234556,-500.0,0.00019178,2]
[347559234,1735918234565,-1109.67,0.00019178,2]
[347559236,1735918234575,-500.0,0.00019178,2]
[347559238,1735918234585,-500.0,0.00019178,2]
[347559240,1735918234594,-4685.4,0.00019178,2]
[347559242,1735918234604,-614.31430029,0.00019178,2]
[347559244,1735918234614,-500.0,0.00019178,2]
[347559246,1735918234624,-500.0,0.00019178,2]
[347559248,1735918234633,-500.0,0.00019178,2]
[347559250,1735918234643,-791.09,0.00019178,2]
[347559252,1735918234652,-500.0,0.00019178,2]
[347559254,1735918234662,-477.95173884,0.00019178,2]
[347559256,1735918234672,-500.0,0.00019178,2]
[347559258,1735918234683,-500.0,0.00019178,2]
[347559260,1735918234692,-500.0,0.00019178,2]
[347559263,1735918234705,-500.0,0.00019178,2]
[347559265,1735918234715,-500.0,0.00019178,2]
[347559267,1735918234725,-500.0,0.00019178,2]
[347559269,1735918234735,-472.65490155,0.00019178,2]
[347559271,1735918234746,-211.48325597,0.00019178,2]
[347559273,1735918234759,-1142.01674403,0.00019178,2]
[347559275,1735918234770,-500.0,0.00019178,2]
[347559277,1735918234780,-599.7,0.00019178,2]
[347559279,1735918234790,-769.65,0.00019178,2]
[347559282,1735918234800,-500.0,0.00019178,2]
[347559284,1735918234810,-500.0,0.00019178,2]
[347559286,1735918234819,-500.0,0.00019178,2]
[347559288,1735918234829,-500.0,0.00019178,2]
[347559289,1735918234839,-500.0,0.00019178,2]
[347559291,1735918234849,-500.0,0.00019178,2]
[347559292,1735918234858,-500.0,0.00019178,2]
[347559294,1735918234868,-1062.21,0.00019178,2]
[347559296,1735918234878,-2402.06,0.00019178,2]
[347559298,1735918234887,-500.0,0.00019178,2]
[347559300,1735918234897,-500.0,0.00019178,2]
[347559302,1735918234907,-500.0,0.00019178,2]
[347559304,1735918234916,-500.0,0.00019178,2]
[347559306,1735918234926,-1513.24,0.00019178,2]
[347559308,1735918234937,-500.0,0.00019178,2]
[347559310,1735918234947,-500.0,0.00019178,2]
[347559312,1735918234961,-2757.07,0.00019178,2]
[347559314,1735918234971,-815.87,0.00019178,2]
[347559316,1735918234980,-500.0,0.00019178,2]
[347559318,1735918234991,-500.0,0.00019178,2]
[347559320,1735918235000,-1161.28,0.00019178,2]
[347559323,1735918235010,-612.63,0.00019178,2]
[347559325,1735918235020,-500.0,0.00019178,2]
[347559327,1735918235031,-500.0,0.00019178,2]
[347559329,1735918235040,-500.0,0.00019178,2]
[347559331,1735918235050,-500.0,0.00019178,2]
[347559333,1735918235061,-500.0,0.00019178,2]
[347559335,1735918235074,-1355.22,0.00019178,2]
[347559337,1735918235083,-628.54,0.00019178,2]
[347559338,1735918235092,-500.0,0.00019178,2]
[347559340,1735918235102,-500.0,0.00019178,2]
[347559343,1735918235111,-500.0,0.00019178,2]
[347559345,1735918235120,-500.0,0.00019178,2]
[347559346,1735918235130,-500.0,0.00019178,2]
[347559348,1735918235139,-500.0,0.00019178,2]
[347559350,1735918235149,-241.57195134,0.00019178,2]
[347559352,1735918235158,-1018.71,0.00019178,2]
[347559354,1735918235168,-425.24056275,0.00019178,2]
[347559356,1735918235177,-158.797415,0.00019178,2]
[347559358,1735918235188,-154.04,0.00019178,2]
[347559361,1735918235198,-1380.21,0.000192,2]
[347559363,1735918235208,-791.57606779,0.00019246,2]
[347559365,1735918235218,-32630.221011,0.00019352,2]
[347559367,1735918235227,-394.0,0.00019375,2]
[347559368,1735918235236,-152.0,0.0001941,2]
[347559370,1735918235246,-500.0,0.00019452,3]
[347559373,1735918235255,-500.0,0.00019452,3]
[347559375,1735918235265,-500.0,0.00019452,3]
[347559377,1735918235274,-500.0,0.00019452,3]
[347559379,1735918235284,-500.0,0.00019452,3]
[347559381,1735918235293,-500.0,0.00019452,3]
[347559383,1735918235302,-500.0,0.00019452,3]
[347559385,1735918235312,-500.0,0.00019452,3]
[347559387,1735918235322,-573.34021817,0.00019452,3]
[347559389,1735918235332,-500.0,0.00019452,3]
[347559391,1735918235341,-329.55856228,0.00019452,3]
[347559392,1735918235350,-609.4,0.00019452,3]
[347559394,1735918235360,-500.0,0.00019452,3]
[347559397,1735918235370,-211.60607973,0.00019452,3]
[347559398,1735918235379,-500.0,0.00019452,3]
[347559400,1735918235388,-500.0,0.00019452,3]
[347559402,1735918235398,-500.0,0.00019452,3]
[347559405,1735918235407,-500.0,0.00019452,3]
[347559407,1735918235417,-1023.31,0.00019452,3]
[347559409,1735918235427,-500.0,0.00019452,3]
[347559411,1735918235440,-500.0,0.00019452,3]
[347559413,1735918235451,-500.0,0.00019452,3]
[347559415,1735918235460,-628.16193264,0.00019452,3]
[347559416,1735918235469,-1139.21,0.00019452,3]
[347559418,1735918235479,-519.46,0.00019452,3]
[347559420,1735918235488,-500.0,0.00019452,3]
[347559422,1735918235497,-602.98,0.00019452,3]
[347559424,1735918235507,-500.0,0.00019452,3]
[347559426,1735918235517,-500.0,0.00019452,3]
[347559429,1735918235527,-698.37,0.00019452,3]
[347559431,1735918235536,-500.0,0.00019452,3]
[347559433,1735918235546,-500.0,0.00019452,3]
[347559435,1735918235555,-626.11,0.00019452,3]
[347559437,1735918235565,-742.77,0.00019452,3]
[347559439,1735918235574,-500.0,0.00019452,3]
[347559440,1735918235584,-500.0,0.00019452,3]
[347559442,1735918235593,-500.0,0.00019452,3]
[347559444,1735918235603,-500.0,0.00019452,3]
[347559446,1735918235612,-500.0,0.00019452,3]
[347559449,1735918235622,-517.46183231,0.00019452,3]
[347559451,1735918235632,-1188.03,0.00019452,3]
[347559452,1735918235641,-500.0,0.00019452,3]
[347559455,1735918235650,-507.33278873,0.00019452,3]
[347559457,1735918235660,-7401.48,0.00019452,3]
[347559459,1735918235670,-1093.78,0.00019452,3]
[347559460,1735918235680,-500.0,0.00019452,3]
[347559462,1735918235692,-500.0,0.00019452,3]
[347559464,1735918235702,-530.47,0.00019452,3]
[347559466,1735918235711,-500.0,0.00019452,3]
[347559468,1735918235721,-500.0,0.00019452,3]
[347559470,1735918235730,-1274.22,0.00019452,3]
[347559472,1735918235740,-500.0,0.00019452,3]
[347559474,1735918235749,-500.0,0.00019452,3]
[347559476,1735918235759,-510.53293874,0.00019452,3]
[347559478,1735918235770,-500.0,0.00019452,3]
[347559480,1735918235780,-500.0,0.00019452,3]
[347559482,1735918235790,-623.48560735,0.00019452,3]
[347559484,1735918235800,-564.07,0.00019452,3]
[347559486,1735918235810,-500.0,0.00019452,3]
[347559488,1735918235819,-797.09,0.00019452,3]
[347559490,1735918235830,-500.0,0.00019452,3]
[347559492,1735918235839,-500.0,0.00019452,3]
[347559494,1735918235849,-500.0,0.00019452,3]
[347559496,1735918235858,-526.44,0.00019452,3]
[347559498,1735918235868,-500.0,0.00019452,3]
[347559500,1735918235878,-500.0,0.00019452,3]
[347559502,1735918235888,-629.64,0.00019452,3]
[347559504,1735918235897,-984.24,0.00019452,3]
[347559506,1735918235907,-263.02036116,0.00019452,3]
[347559508,1735918235916,-500.0,0.00019452,3]
[347559510,1735918235926,-721.57,0.00019452,3]
[347559512,1735918235936,-500.0,0.00019452,3]
[347559514,1735918235947,-500.0,0.00019452,3]
[347559516,1735918235960,-500.0,0.00019452,3]
[347559518,1735918235970,-500.0,0.00019452,3]
[347559520,1735918235980,-677.7,0.00019452,3]
[347559522,1735918235989,-500.0,0.00019452,3]
[347559524,1735918236000,-500.0,0.00019452,3]
[347559526,1735918236009,-500.0,0.00019452,3]
[347559528,1735918236019,-543.40269219,0.00019452,3]
[347559530,1735918236028,-756.24,0.00019452,3]
[347559532,1735918236038,-500.0,0.00019452,3]
[347559534,1735918236047,-500.0,0.00019452,3]
[347559536,1735918236056,-500.0,0.00019452,3]
[347559538,1735918236066,-1193.89,0.00019452,3]
[347559540,1735918236075,-500.0,0.00019452,3]
[347559542,1735918236084,-1664.39,0.00019452,3]
[347559544,1735918236093,-500.0,0.00019452,3]
[347559546,1735918236103,-500.0,0.00019452,3]
[347559548,1735918236112,-500.0,0.00019452,3]
[347559550,1735918236121,-508.58,0.00019452,3]
[347559552,1735918236131,-606.37,0.00019452,3]
[347559554,1735918236140,-500.0,0.00019452,3]
[347559556,1735918236151,-562.13078886,0.00019452,3]
[347559558,1735918236160,-500.0,0.00019452,3]
[347559560,1735918236170,-500.0,0.00019452,3]
[347559562,1735918236179,-2737.47,0.00019452,3]
[347559564,1735918236190,-1252.14,0.00019452,2]
[347559566,1735918236199,-500.0,0.00019452,3]
[347559568,1735918236209,-500.0,0.00019452,3]
[347559570,1735918236219,-500.0,0.00019452,3]
[347559572,1735918236228,-500.0,0.00019452,3]
[347559574,1735918236237,-510.79758504,0.00019452,3]
[347559576,1735918236247,-569.89,0.00019452,3]
[347559578,1735918236256,-500.0,0.00019452,3]
[347559580,1735918236266,-500.0,0.00019452,3]
[347559582,1735918236275,-500.0,0.00019452,3]
[347559584,1735918236285,-531.11,0.00019452,3]
[347559586,1735918236295,-500.0,0.00019452,3]
[347559588,1735918236304,-500.0,0.00019452,3]
[347559590,1735918236314,-1198.87,0.00019452,3]
[347559592,1735918236323,-500.0,0.00019452,3]
[347559594,1735918236332,-500.0,0.00019452,3]
[347559596,1735918236341,-500.0,0.00019452,3]
[347559598,1735918236351,-38076.05,0.00019452,3]
[347559600,1735918236360,-3378.78,0.00019452,3]
[347559602,1735918236369,-3296.11,0.00019452,3]
[347559604,1735918236379,-1415.65,0.00019452,3]